Cogmind - Beta 14 @@@ ROGUE MODE // 2024.09.19 @ 17:44:13 Player: Mutetourette Result: Destroyed by D-53 Grenadier with Mini Grenade Launcher Performance ------------- Evolutions (0) 0 Regions Visited (2) 400 Robots Destroyed (11) 55 Value Destroyed (307) 307 Prototype IDs (0) 0 Alien Tech Used (0) 0 Bonus (0) 0 TOTAL SCORE: 762 Bonus ------- None Cogmind --------- Core Integrity 0/250 Matter 131/300 Energy 99/100 System Corruption 0% Temperature Cool (0) Movement Core (100) Ox1 Location -10/Mines Parts ------- > --- POWER (1) -------- (None) > --- PROPULSION (2) --- (None) > --- UTILITY (2) ------ Small Storage Unit Terrain Scan Processor > --- WEAPON (2) ------- (None) > --- INVENTORY (8) ---- Ion Engine Light Treads Light Armor Plating Peak State ------------ > --- POWER ------------ Light Nuclear Core > --- PROPULSION ------- Light Treads Light Treads > --- UTILITY ---------- Small Storage Unit Terrain Scan Processor > --- WEAPON ----------- Autogun Autogun > --- INVENTORY -------- Ion Engine Light Ion Engine Small Laser Small Laser Grenade Launcher [Rating: 12] Favorites ----------- Power Light Nuclear Core Engine Light Ion Engine Power Core Light Nuclear Core Propulsion Light Treads Treads Light Treads Utility Small Storage Unit Storage Small Storage Unit Processor Terrain Scan Processor Weapon Autogun Energy Gun Small Laser Ballistic Gun Autogun Launcher Grenade Launcher Build | -11 -10 -10 ------- Run | Yrd Mat Min Slots Evolved . | . . . Power . | . . . Propulsion . | . . . Utility . | . . . Weapon . | . . . Parts Attached 21 | 7 10 4 Power 3 | 1 1 1 Engine 2 | 1 . 1 Core 1 | . 1 . Reactor . | . . . Propulsion 2 | 2 . . Treads 2 | 2 . . Leg . | . . . Wheel . | . . . Hover . | . . . Flight . | . . . Utility 2 | 1 1 . Device . | . . . Storage 1 | 1 . . Processor 1 | . 1 . Hackware . | . . . Protection . | . . . Artifact . | . . . Weapon 14 | 3 8 3 Energy Gun 4 | 2 2 . Energy Cannon . | . . . Ballistic Gun 6 | 1 4 1 Ballistic Cannon . | . . . Launcher 4 | . 2 2 Special Weapon . | . . . Impact Weapon . | . . . Slashing Weapon . | . . . Piercing Weapon . | . . . Special Melee Weapon . | . . . Unidentified Prototypes . | . . . Parts Lost 8 | . . 8 Power 2 | . . 2 Propulsion 2 | . . 2 Utility . | . . . Weapon 4 | . . 4 Highest Loss Streak 8 | . . 8 To Critical Strikes . | . . . Average Slot Usage (%) 96 | . 96 97 Engine 1 | . 2 . Core 12 | . 11 12 Treads 27 | . 28 27 Storage 14 | . 14 14 Processor 12 | . 10 14 Energy Gun 1 | . 3 . Ballistic Gun 23 | . 22 24 Launcher 2 | . 2 1 Peak Build Rating 12 | 6 12 12 Average Rating 10 | 4 10 11 On Entrance 6 | . 6 12 Naked Turns . | . . . Heaviest Build 16 | 10 16 16 Greatest Support 40 | 40 40 40 Greatest Overweight (x) 2 | . . 2 Average Overweight (x) . | . . . Largest Inventory Capacity 8 | 8 8 8 Average Capacity 7 | 7 8 8 Most Carried 6 | 5 6 6 Average Carried 3 | 2 3 5 Final Capacity 8 | 8 8 8 Final Carried 4 | 2 4 3 Class Distribution -------------------- 100% | Mutant Dominant Class ---------------- Mutant | -10/Materials Mutant | -10/Mines Resources | -11 -10 -10 ----------- Run | Yrd Mat Min Matter Collected 499 | 148 275 76 Remotely . | . . . Salvage Created 275 | . 193 82 Parts 11 | . 10 1 Haulers Intercepted 1 | . 1 . Recyclers Shooed . | . . . Parts Field Recycled . | . . . Retrieved Matter . | . . . Parts Self-Destructed . | . . . Prevented . | . . . Kills | -11 -10 -10 ------- Run | Yrd Mat Min Combat Hostiles Destroyed 13 | . 6 7 Guns 4 | . 3 1 AOE 9 | . 3 6 Classes Destroyed 7 | . 4 3 Worker 1 | . 1 . Builder 1 | . . 1 Hauler 1 | . 1 . Operator 1 | . 1 . Grunt 6 | . 6 . Demolisher 1 | . . 1 Assembled 6 | . . 6 Best Kill Streak 8 | . 5 8 Combat Bots Only 7 | . 2 7 Max Kills in Single Turn 3 | . 2 3 Gunslinging . | . . . Exploded 3 | . 1 3 Melee . | . . . Uniques/NPCs Destroyed . | . . . Combat | -11 -10 -10 -------- Run | Yrd Mat Min Hostile Shots Fired 49 | . 28 21 Missed 12 | . 8 4 Damage Taken 1029 | . 256 773 Core 257 | . 28 229 Absorbed by Shields . | . . . Core Remaining (%) 100 | 100 . . Volleys Fired 36 | . 23 13 Largest 2 | . 2 2 Hottest 53 | . 50 53 Shots Fired 54 | . 35 19 Gun 35 | . 24 11 Cannon . | . . . Launcher 19 | . 11 8 Special . | . . . Kinetic 35 | . 24 11 Thermal . | . . . Explosive 19 | . 11 8 Electromagnetic . | . . . Robot Hit Streak 8 | . 3 8 Robot Miss Streak 2 | . 2 2 Penetration Max . | . . . Secondary Targets . | . . . Shots Hit Robots 25 | . 13 12 Core Hits 46 | . 16 30 Critical Kills . | . . . Critical Parts Destroyed . | . . . Critical Strikes . | . . . Melee Attacks . | . . . Impact . | . . . Slashing . | . . . Piercing . | . . . Sneak Attacks . | . . . Combat Hostiles . | . . . Follow-up Attacks . | . . . Damage Inflicted 1344 | . 713 631 Guns 218 | . 135 83 Cannons . | . . . Explosions 1124 | . 578 546 Melee . | . . . Ramming 2 | . . 2 Kinetic 218 | . 135 83 Thermal . | . . . Explosive 1124 | . 578 546 Electromagnetic . | . . . Impact . | . . . Slashing . | . . . Piercing . | . . . Highest Corruption . | . . . Average Corruption . | . . . Corruption Purged . | . . . Corruption Blocked . | . . . Overload Shots . | . . . Overflow Damage 40 | . 34 6 Projectiles . | . . . Explosions 40 | . 34 6 Melee . | . . . Knockbacks . | . . . Impact . | . . . Kinetic . | . . . Secondary . | . . . Self-Inflicted Damage 38 | . 11 27 Shots 3 | . 1 2 Rammed 1 | . . 1 Targets Rammed 1 | . . 1 Kicked . | . . . Crushed . | . . . Highest Temperature 66 | . 66 34 Average Temperature 25 | . 30 14 Received Heat Transfer 176 | . 156 20 Siege Activations . | . . . Robots Corrupted . | . . . Combat Hostiles . | . . . Parts Fried 2 | . . 2 Impact Corruptions . | . . . Robots Melted . | . . . Combat Hostiles . | . . . Parts Melted . | . . . Heat Transferred . | . . . Parts Sabotaged . | . . . Parts Stolen . | . . . Parts Stripped . | . . . Power Chain Reactions . | . . . Alert | -11 -10 -10 ------- Run | Yrd Mat Min Peak Influence 217 | . 217 119 Initial 84 | . . 84 Average 97 | . 125 86 Maximum Alert Level 1 | . 1 . Low Security (%) 88 | 100 79 100 Level 1 11 | . 20 . Level 2 . | . . . Level 3 . | . . . Level 4 . | . . . Level 5 . | . . . High Security . | . . . Max Security . | . . . Squads Dispatched 1 | . 1 . Investigation . | . . . Extermination . | . . . Reinforcement 1 | . 1 . Assault . | . . . Garrison . | . . . Intercept . | . . . Searches Triggered . | . . . Construction Impeded . | . . . Haulers Reinforced . | . . . Active Scanning Responses . | . . . Cargo Convoy Interrupts . | . . . Stealth | -11 -10 -10 --------- Run | Yrd Mat Min Distress Signals 2 | . 2 . Communications Jammed . | . . . Distress Signals . | . . . Times Spotted 19 | . 7 12 Peak Tracking Total 6 | . 3 6 Tactical Retreats . | . . . Traps | -11 -10 -10 ------- Run | Yrd Mat Min Traps Triggered . | . . . Indirectly . | . . . Trap Hack Attempts . | . . . Triggered . | . . . Disarmed . | . . . Reprogrammed . | . . . Reused . | . . . Traps Extracted . | . . . Installed . | . . . Triggered . | . . . Machines | -11 -10 -10 ---------- Run | Yrd Mat Min Machines Disabled . | . . . Max in Single Turn . | . . . Machines Repaired . | . . . Machines Dismantled . | . . . Machines Sabotaged . | . . . Overloaded Fab Kills . | . . . Hacking | -11 -10 -10 --------- Run | Yrd Mat Min Machines Accessed 1 | . 1 . Terminals . | . . . Fabricators . | . . . Repair Stations . | . . . Recycling Units 1 | . 1 . Scanalyzers . | . . . Garrison Access . | . . . Total Hacks 3 | . 3 . Successful 2 | . 2 . Failed 1 | . 1 . Catastrophic . | . . . Database Lockouts . | . . . Manual . | . . . Terminals . | . . . Fabricators . | . . . Repair Stations . | . . . Recycling Units 3 | . 3 . Scanalyzers . | . . . Garrison Access . | . . . Terminal Hacks . | . . . Fabricator Hacks . | . . . Repair Station Hacks . | . . . Recycling Unit Hacks 2 | . 2 . Recycle Component 1 | . 1 . Process 1 | . 1 . Scanalyzer . | . . . Garrison Access Hacks . | . . . Unauthorized Hacks . | . . . Terminals . | . . . Fabricators . | . . . Repair Stations . | . . . Recycling Units . | . . . Scanalyzers . | . . . Garrison Access . | . . . Data Cores Recovered . | . . . Used . | . . . Hacking Detections 1 | . 1 . Full Trace Events . | . . . Feedback Events . | . . . Feedback Blocked . | . . . Robot Schematics Acquired . | . . . Robots Built . | . . . Authchips . | . . . Time . | . . . Total Robot Build Rating . | . . . Part Schematics Acquired . | . . . Parts Built . | . . . Authchips . | . . . Time . | . . . Total Part Build Rating . | . . . Parts Repaired . | . . . Time . | . . . Parts Recycled 1 | . 1 . Recycled Matter 30 | . 30 . Retrieved Matter . | . . . Retrieved Components . | . . . Parts Scanalyzed . | . . . Part Schematics Acquired . | . . . Parts Damaged . | . . . Bothacking | -11 -10 -10 ------------ Run | Yrd Mat Min Used RIF Installer . | . . . Robots Hacked . | . . . Non-combat . | . . . Combat . | . . . Robot Hacks Applied . | . . . Relay Couplers Released . | . . . Fabnet Peak Effective % . | . . . Robots Rewired . | . . . Allies Hacked . | . . . Hacks Repelled . | . . . Allies | -11 -10 -10 -------- Run | Yrd Mat Min Total Allies . | . . . Largest Group . | . . . Highest-Rated Group . | . . . Highest-Rated Ally . | . . . Total Orders . | . . . Ally Attacks . | . . . Total Damage . | . . . Kills . | . . . Allies Corrupted . | . . . Allies Melted . | . . . Intel | -11 -10 -10 ------- Run | Yrd Mat Min Robot Analysis Total . | . . . Derelict Logs Recovered 1 | . . 1 Drone Launches . | . . . Drone Recoveries . | . . . Exploration | -11 -10 -10 ------------- Run | Yrd Mat Min Turns Passed 652 | 76 355 221 Spaces Moved 337 | 50 173 114 Core 19 | 18 . 1 Treads 318 | 32 173 113 Legs . | . . . Wheels . | . . . Hover . | . . . Flight . | . . . Fastest Speed 50 | 50 160 150 Average Speed 154 | 120 160 159 Slowest Speed 160 | 160 160 160 Overloaded Moves . | . . . Propulsion Burnouts . | . . . Robots Hopped . | . . . Cave-ins Triggered . | . . . Exploration Rate (%) 26 | 5 31 43 Regions Visited 2 Branch Regions 1 Pre-discovered Areas 1 | . . 1 Known Exits Taken . | . . . Unknown Exits Taken 2 | 1 1 . Scrap Searched . | . . . Spaces Dug . | . . . Terrain Destroyed 99 | . 46 53 Melee . | . . . Projectile . | . . . AOE 99 | . 46 53 Terrain Rammed . | . . . Walls Destroyed . | . . . Machines Disabled . | . . . Actions | -11 -10 -10 --------- Run | Yrd Mat Min Total 420 | 65 219 136 Wait 6 | 2 2 2 Move 335 | 49 172 114 Hop . | . . . Pick Up 17 | 7 8 2 Fast Attach 1 | 1 . . Attach 10 | 5 2 3 Detach . | . . . Swap 10 | 1 8 1 Drop 4 | . 4 . Fire 36 | . 23 13 Melee . | . . . Ram . | . . . Kick . | . . . Crush 1 | . . 1 Escape Stasis . | . . . Rewire . | . . . Trap . | . . . Miscellaneous . | . . . Route ------- -11/Scrapyard -10/Materials -10/Mines History --------- Turn | Location | Event 12 | -11/Scrapyard | Discovered new exit (range 15) 77 | -11/Scrapyard | Entered Materials 272 | -10/Materials | Discovered new exit (range 16) 318 | -10/Materials | Build established: Mutant 432 | -10/Materials | Entered Mines 460 | -10/Mines | A weapon hastily lodged in a ceiling crevice suddenly fell to the ground 555 | -10/Mines | Learned location of Storage (-8) 580 | -10/Mines | Assembled infested the area 636 | -10/Mines | Core integrity fell below 50% 644 | -10/Mines | Core integrity fell below 20% 653 | -10/Mines | Destroyed by D-53 Grenadier with Mini Grenade Launcher Last Messages --------------- 00630_ The unstable cave ceiling collapses. 00631_ Lgt. Nuclear Core destroyed. 00631_ Grenade Launcher destroyed. 00635_ Destroyed Mining Laser. 00636_ The unstable cave ceiling collapses. 00638_ D-53 Grenadier destroyed. 00639_ Autogun destroyed. 00643_ Grenade Launcher destroyed. 00644_ The unstable cave ceiling collapses. 00645_ as-30136 destroyed. 00646_ The unstable cave ceiling collapses. 00647_ Lgt. Ion Engine destroyed. 00647_ K-01 Serf collects debris. 00648_ The unstable cave ceiling collapses. 00649_ Lgt. Treads destroyed. 00651_ The unstable cave ceiling collapses. 00651_ K-01 Serf collects debris. 00651_ Lgt. Treads destroyed. 00652_ The unstable cave ceiling collapses. 00653_ Autogun destroyed. Map ----- +----------------------------------------------------+ | ?????????????????????????????? #??????? | | ????????????????????????????? #?????# | | ????????????????????????????? #???? | | ?????????????????????????????? #???# | | ???????????????????????????????? #### | | ?????????????????????????????????? # | | ???????????????????????????????????# | | ????????????????????????????###?????# | | ???????????????????????????## #????# | | ???????????????????????????# ????# | | ???????????????????????????# #??## | | ???????????????????????????# ### | | ????????????????????????????# | | ????????????????????????????## | | ?????????????????????????????### | | ??????????????????##???????????## # # | | ?????????????###?? ###?????????## ## # | | ?????????????# ## #??####??## ### # | | ????????????## ??## #### ##?# # | | ????????????# ! #### k ##??# # | | ????????????# # % ## ##???# | | ??????####### k ### ##????# | | ?????## ##?####?????#### | | ?????# # d # ##??????????????? | | ?????# # ####???????????????? | | ?????# @ ########???????????? | | ?????# a #?????? | | ?????# #??????? | | ?????# # # # #### ### ##???????? | | ?????# ## ##????#?????????????? | | ?????## #### ??????????????????? | | ??????# #??## ####?????????????????? | | ??????# #???# ## #????????????????????? | | ??????# #???# ??##????????????????????? | | ???#### #???## ????????????????????????? | | ??## # #????# ????????????????????????? | | ??# ##???# ????????????????????????? | | ??# ##??# ????????????????????????? | | ??# #### #???????????????????????? | | ??## #???????????????????????? | | ???# ##### #???????????????????????? | | ???# #?????????????????????????????? | | ???# #?????????????????????????????? | | ??# ?????????????????????????????? | | ??# """ ????????????????????????????? | | ??# """ #???????????????????????????? | | ??# """ #???????????????????????????? | | ??## #???????????????????????????? | | ???# ##???????????????????????????? | | ???##? #????????????????????????????? | +----------------------------------------------------+ Best States ------------- Heat Dissipation 25 Energy Generation 14 Energy Capacity 160 Matter Stores 255 Matter Capacity 300 Sight Range 16 Terrain Scan Density 85 Evasion (%) 50 Recoil Reduction 2 Item Schematics ----------------- None Robot Schematics ------------------ None Fabricated ------------ Nothing Alien Tech Used ----------------- None Achievements -------------- None Challenges ------------ None Game ------ Seed SmallCryofiberArchive Manual? 0 Play Time 00:22:41 Cumulative 3.5 hours Start 2024.09.19 @ 17:14:09 End 2024.09.19 @ 17:44:13 Sessions 1 Manual Loads 0 Difficulty Rogue Special Mode None Game No. 8 Rogue 8 Adventurer 0 Explorer 0 Win Type - Total 0 Types 0/0/0/0/0/0/0/0/0 Lore% 1 Gallery% 6 Achievement% 4 Wizard Run 0 Options --------- Layout 1 ASCII 0 Keyboard 0 Movement Numpad Keybinds 0 Fullscreen 1 Font 24/Smallcaps Map View 50x35 Zoom Use 15% Tactical HUD 1 Map Filters NONE Filters NONE Steam 1 RUN: ac5382f0-6b4a-4520-9dfb-7e317b8eb82b